bitfinex/quotes_ETHUSD_20260130
["timestamp","ask_amount","ask_price","bid_price","bid_amount"]
[1769789703981,0.01475579,2738.0,2737.4,0.001]
[1769789704148,0.01475579,2738.2,2736.9,0.98483509]
[1769789704348,0.01475579,2737.8,2736.7,1.6477]
[1769789704551,0.01475579,2737.6,2736.7,1.6477]
[1769789705076,0.01475579,2738.0,2736.8,0.98483509]
[1769789705235,0.01475579,2738.2,2736.9,0.26325351]
[1769789705436,0.06598055,2738.6,2736.9,0.26325351]
[1769789705437,0.766,2738.5,2737.0,0.98483509]
[1769789705665,0.01475579,2738.2,2737.1,1.6477]
[1769789705866,0.01475579,2738.0,2737.1,1.6477]
[1769789706066,0.01475579,2738.2,2736.6,0.98483509]
[1769789706067,0.01475579,2737.7,2736.6,0.98483509]
[1769789706259,0.01475579,2737.5,2736.7,1.6477]
[1769789706861,0.01475579,2737.5,2736.1,1.88908275]
[1769789707060,0.01475579,2737.3,2736.2,1.6477]
[1769789707374,0.01475579,2737.5,2736.2,2.62308762]
[1769789707759,0.01475579,2737.3,2736.2,2.62308762]
[1769789707963,0.01475579,2737.3,2736.2,2.88539638]
[1769789710842,0.01475579,2737.1,2736.2,1.6477]
[1769789711202,0.01475579,2736.9,2735.8,0.97538762]
[1769789711377,0.01475579,2737.1,2735.9,1.6477]
[1769789711747,0.01475579,2737.0,2735.9,1.6477]
[1769789711945,0.01475579,2737.3,2736.0,0.97538762]
[1769789712349,0.01475579,2737.1,2736.0,0.97538762]
[1769789712653,0.01475579,2736.9,2736.1,1.6477]
[1769789712869,0.01475579,2737.3,2735.8,0.97538762]
[1769789713051,0.766,2737.4,2736.0,0.97538762]
[1769789713667,0.01475579,2737.9,2736.2,0.97538762]
[1769789713879,0.11715579,2738.2,2736.2,0.97538762]
[1769789713880,0.01475579,2738.1,2736.2,0.97538762]
[1769789714079,0.01475579,2738.0,2736.4,0.97538762]
[1769789714257,0.01475579,2737.8,2736.4,0.97538762]
[1769789714455,0.01475579,2737.8,2736.6,0.97538762]
[1769789715274,0.01475579,2738.2,2736.8,0.97538762]
[1769789715479,0.01475579,2738.2,2736.8,0.97353995]
[1769789716385,0.01475579,2738.2,2736.9,0.97446378]
[1769789716549,0.766,2738.3,2736.9,0.97446378]
[1769789716550,0.002,2737.8,2737.0,0.97446378]
[1769789716877,0.002,2738.0,2737.1,0.97346378]
[1769789717075,0.002,2738.0,2737.2,0.97346378]
[1769789717466,0.002,2738.0,2737.3,2.62116378]
[1769789717646,0.002,2738.0,2737.3,1.23558016]
[1769789717850,0.002,2738.0,2737.4,1.6477]
[1769789718051,0.002,2738.0,2737.0,1.16225671]
[1769789718284,0.01475579,2737.9,2737.0,1.16225671]
[1769789718487,0.002,2738.0,2737.0,1.16225671]
[1769789719655,0.002,2738.0,2737.2,0.97346378]
[1769789720063,0.002,2738.0,2737.3,0.97346378]
[1769789720255,0.002,2738.4,2737.3,0.97246378]
[1769789721879,0.01475579,2738.1,2737.3,0.97246378]
[1769789722600,0.01475579,2738.1,2736.9,4.84246378]
[1769789722777,0.01475579,2738.1,2736.9,5.32671016]
[1769789722982,0.01475579,2737.9,2736.9,5.32671016]
[1769789723179,0.01475579,2737.9,2736.9,0.97246378]
[1769789723381,0.01475579,2737.7,2736.6,0.97246378]
[1769789723703,0.01475579,2738.1,2736.8,0.97246378]
[1769789724407,0.01475579,2738.1,2736.5,0.766]
[1769789724408,0.01475579,2737.7,2736.5,0.766]
[1769789724578,0.01475579,2737.7,2736.5,1.73846378]
[1769789725002,0.002,2738.4,2737.0,0.97246378]
[1769789725204,0.002,2738.4,2737.2,0.97246378]
[1769789726208,0.002,2738.6,2737.3,0.97146378]
[1769789726427,0.002,2738.6,2737.8,0.97146378]
[1769789728290,0.002,2738.6,2738.0,0.97146378]
[1769789728883,0.002,2738.2,2738.0,0.97146378]
[1769789729610,0.002,2738.2,2737.4,0.97146378]
[1769789729817,0.002,2738.2,2737.5,1.15993931]
[1769789730020,0.002,2738.2,2737.5,0.97146378]
[1769789731626,0.002,2738.2,2737.1,1.16005438]
[1769789733225,0.01475579,2738.1,2736.7,0.97246378]
[1769789733396,0.01475579,2737.9,2736.7,0.97246378]
[1769789733595,0.01475579,2737.9,2736.7,0.001]
[1769789733596,0.01475579,2737.7,2736.7,0.001]
[1769789734692,0.01475579,2737.3,2736.2,0.001]
[1769789734895,0.01475579,2737.0,2736.2,0.001]
[1769789735122,0.78075579,2737.0,2735.5,0.97146378]
[1769789735423,0.01475579,2736.4,2735.4,0.001]
[1769789735791,0.01475579,2736.2,2735.4,0.001]
[1769789736509,0.01475579,2736.4,2735.4,0.001]
[1769789736709,0.01475579,2736.6,2735.4,0.001]
[1769789736710,0.766,2736.5,2735.4,0.001]
[1769789738023,0.01475579,2736.4,2735.4,0.001]
[1769789740210,0.766,2736.5,2735.4,0.97246378]
[1769789741309,0.01475579,2736.4,2735.4,0.97246378]
[1769789741912,0.766,2736.5,2735.4,0.97246378]
[1769789742096,0.766,2736.5,2735.6,0.001]
[1769789742528,0.002,2736.2,2735.6,0.001]
[1769789744399,0.002,2736.2,2735.4,0.97246378]
[1769789744803,0.002,2736.2,2735.4,0.001]
[1769789745000,0.002,2736.2,2734.7,0.91414925]
[1769789745001,0.002,2736.2,2734.7,3.87]
[1769789745310,0.01475579,2735.1,2733.4,0.97146378]
[1769789745643,0.01475579,2734.9,2733.4,1.16007348]
[1769789746312,0.01475579,2734.5,2733.4,0.97146378]
[1769789746643,0.01475579,2734.5,2733.1,0.97346378]
[1769789747435,0.01475579,2734.9,2733.3,0.97146378]
[1769789747640,0.766,2734.5,2733.3,0.97146378]
[1769789748131,0.01475579,2734.9,2733.2,0.97146378]
[1769789748445,0.07182822,2735.5,2733.4,0.97146378]
[1769789748638,0.01475579,2735.1,2733.6,0.97146378]
[1769789749669,0.01475579,2734.9,2733.6,0.97146378]
[1769789750257,0.01475579,2735.5,2733.7,0.97146378]
[1769789750458,0.01475579,2735.1,2733.7,0.97146378]
[1769789750764,0.766,2735.5,2733.7,0.97146378]
[1769789750965,0.766,2735.5,2733.9,0.97146378]
[1769789751134,0.01475579,2735.4,2733.9,0.97146378]
[1769789751334,1.71973662,2735.8,2733.9,0.97146378]
[1769789751547,0.95373662,2735.8,2733.9,0.97146378]
[1769789752262,0.95373662,2735.8,2734.7,0.97146378]
[1769789752463,0.95373662,2735.8,2734.9,0.97146378]
[1769789753771,0.002,2736.2,2735.0,0.902433]
[1769789754547,0.002,2736.2,2735.2,0.902433]
[1769789756374,0.002,2736.2,2735.4,0.002]
[1769789756878,0.01475579,2736.1,2735.1,0.002]
[1769789757050,0.01475579,2735.7,2734.4,0.902433]
[1769789757253,0.01475579,2735.7,2734.4,4.772433]
[1769789757563,0.01475579,2735.7,2734.5,0.56867316]
[1769789758751,0.01475579,2735.9,2734.6,0.902433]
[1769789758946,0.002,2736.2,2734.6,0.902433]
[1769789760881,0.002,2736.2,2734.8,0.902433]
[1769789761080,0.01475579,2736.1,2734.6,3.87]
[1769789761382,0.01475579,2736.1,2734.7,0.53528993]
[1769789761557,0.92921438,2735.7,2734.5,0.56867316]
[1769789761757,0.92921438,2735.7,2734.1,0.91635363]
[1769789761758,0.01475579,2735.6,2734.1,0.91635363]
[1769789762103,0.01475579,2735.4,2734.1,0.002]
[1769789762281,0.01475579,2735.4,2734.2,0.91433596]
[1769789762457,0.11715579,2735.8,2734.2,1.91433596]
[1769789762786,0.11715579,2735.8,2734.3,0.55738423]
[1769789763155,0.11715579,2735.8,2734.3,1.55738423]
[1769789763483,0.01475579,2735.1,2734.1,0.002]
[1769789764570,0.11715579,2735.1,2734.1,0.002]
[1769789764776,0.01475579,2734.7,2734.0,0.38146169]
[1769789765171,0.11715579,2735.1,2734.0,0.38146169]
[1769789766166,0.01475579,2734.9,2734.0,0.38146169]
[1769789766687,0.11715579,2735.1,2734.0,0.38146169]
[1769789766882,0.01475579,2734.9,2734.0,0.33146169]
[1769789767103,0.01475579,2734.9,2733.1,1.002]
[1769789767104,0.01475579,2734.3,2733.1,1.002]
[1769789767283,0.01475579,2734.4,2733.1,1.002]
[1769789768178,0.01475579,2734.4,2734.1,0.002]
[1769789768384,0.01475579,2734.4,2733.1,1.002]
[1769789768566,0.01475579,2734.4,2733.9,0.002]
[1769789768767,0.01475579,2734.4,2733.1,1.002]
[1769789769796,0.01475579,2734.6,2733.1,1.002]
[1769789770093,0.11715579,2734.4,2733.1,1.002]
[1769789770296,0.11715579,2734.4,2732.9,0.002]
[1769789770297,0.01475579,2733.8,2732.9,0.002]
[1769789770593,0.11715579,2733.6,2732.5,0.956]
[1769789770803,0.767,2733.9,2732.7,0.978]
[1769789770964,0.11715579,2733.8,2732.6,0.978]
[1769789771164,0.1024,2733.8,2732.6,0.978]
[1769789771992,0.78175579,2734.0,2732.6,0.978]
[1769789771993,0.01475579,2733.7,2732.6,0.978]
[1769789772397,0.1024,2733.9,2732.6,0.978]
[1769789772600,0.01475579,2733.8,2732.6,0.978]
[1769789775813,0.1024,2733.6,2732.6,0.978]
[1769789777130,0.01475579,2734.1,2732.7,0.978]
[1769789777131,0.1024,2734.1,2732.7,0.978]
[1769789777308,0.53153313,2734.5,2732.9,0.978]
[1769789777677,0.1024,2734.4,2733.1,0.978]
[1769789778296,0.53153313,2734.5,2733.1,0.978]
[1769789778500,0.1024,2734.4,2733.1,0.978]
[1769789778697,0.11715579,2734.4,2733.1,0.978]
[1769789779421,0.1024,2734.4,2733.1,0.978]
[1769789779979,0.01475579,2734.1,2733.1,0.978]
[1769789780287,0.01475579,2734.1,2732.8,0.18928585]
[1769789780492,0.01475579,2733.9,2732.7,0.978]
[1769789781020,0.01475579,2733.9,2732.9,0.002]
[1769789781388,0.01475579,2733.7,2732.9,0.002]
[1769789781788,0.01475579,2733.7,2732.9,0.001]
[1769789782179,0.01475579,2733.7,2732.9,5.98e-06]
[1769789784246,0.01475579,2733.4,2732.1,24.785069]
[1769789784532,0.01475579,2732.8,2732.1,2.45442411]
[1769789785282,0.01475579,2732.8,2731.8,0.002]
[1769789785522,0.01475579,2733.4,2731.8,0.002]
[1769789785720,0.01475579,2733.1,2731.8,0.98]
[1769789785918,0.01475579,2732.9,2731.8,0.98]
[1769789787493,0.01475579,2732.9,2731.8,0.48093994]
[1769789787699,0.1024,2732.9,2731.8,0.48093994]
[1769789788946,0.72167546,2733.7,2731.9,0.96549452]
[1769789789116,0.19120634,2734.1,2732.1,0.96549452]
[1769789789412,0.1024,2733.6,2732.1,0.96549452]
[1769789789625,0.01475579,2733.6,2732.1,0.96549452]
[1769789790118,0.11715579,2733.6,2732.1,0.96549452]
[1769789790518,0.11715579,2733.6,2732.2,1.17235824]
[1769789791425,0.01475579,2733.2,2731.7,0.96549452]
[1769789791628,0.01475579,2733.0,2731.7,0.96549452]
[1769789791918,0.767,2732.9,2731.7,0.96549452]
[1769789792217,0.1024,2732.8,2731.6,0.002]
[1769789792420,0.1024,2732.8,2731.6,0.96749452]
[1769789792608,0.1024,2732.8,2731.8,0.96549452]
[1769789792801,0.1024,2732.8,2732.0,0.96549452]
[1769789792997,0.01475579,2734.0,2732.0,0.96549452]
[1769789793199,0.11715579,2733.6,2732.0,0.96549452]
[1769789794190,0.001,2733.7,2732.1,0.96549452]
[1769789795528,0.001,2733.7,2732.3,0.96549452]
[1769789796093,0.001,2733.7,2732.5,0.96549452]
[1769789796322,0.37374585,2734.1,2732.8,0.95076277]
[1769789796699,0.1024,2734.0,2732.8,0.95076277]
[1769789796923,0.1024,2734.0,2731.9,0.18806731]
[1769789796924,0.01475579,2733.8,2732.4,0.97016011]
[1769789797420,0.1024,2734.0,2732.4,0.97016011]
[1769789798325,0.01475579,2733.8,2732.4,0.97016011]
[1769789798536,0.1024,2734.0,2732.5,1.15867372]
[1769789798705,0.37374585,2734.1,2732.5,1.15867372]
[1769789799910,0.01475579,2734.0,2732.5,1.15867372]
[1769789800109,0.11715579,2734.0,2732.6,0.97016011]
[1769789800426,0.1024,2734.0,2732.6,0.97016011]
[1769789800727,0.1024,2734.0,2732.8,0.97016011]
[1769789801299,0.11715579,2734.0,2732.8,0.97016011]
[1769789802808,0.01475579,2733.8,2732.1,0.97016011]
[1769789803008,0.01475579,2733.6,2732.1,0.97016011]
[1769789803332,0.01475579,2733.4,2732.1,0.97016011]
[1769789803757,0.01475579,2733.2,2731.8,0.97216011]
[1769789804408,0.01475579,2733.4,2731.8,1.16109738]
[1769789805541,0.01475579,2733.2,2731.8,0.97216011]
[1769789806345,0.11715579,2733.6,2731.9,0.97016011]
[1769789806839,0.11715579,2733.6,2732.3,0.97216011]
[1769789807041,0.01475579,2733.8,2732.3,0.97216011]
[1769789807248,0.37374585,2734.1,2732.3,0.97216011]
[1769789807542,0.01475579,2733.6,2732.3,0.97216011]
[1769789807740,0.01475579,2733.4,2732.3,0.97216011]
[1769789807931,0.44212996,2733.5,2732.3,0.97216011]
[1769789808243,0.1024,2733.9,2732.3,0.97216011]
[1769789808540,0.01475579,2733.4,2732.3,0.97216011]
[1769789808733,0.01475579,2733.2,2732.3,0.97216011]
[1769789809310,0.01475579,2733.2,2732.3,0.002]
[1769789809531,0.01475579,2733.4,2732.3,0.002]
[1769789809730,0.1024,2733.6,2732.3,0.002]
[1769789809907,0.1024,2733.4,2732.3,0.002]
[1769789810111,0.1024,2733.4,2732.3,0.97216011]
[1769789810540,0.11715579,2733.4,2732.3,0.97216011]
[1769789811856,0.11715579,2733.4,2732.3,0.002]
[1769789812192,0.01475579,2733.2,2732.3,0.002]
[1769789812450,0.01475579,2732.8,2732.0,0.002]
[1769789814445,0.01475579,2733.0,2732.0,0.002]
[1769789814849,0.01475579,2732.8,2732.0,0.002]
[1769789815039,0.11715579,2733.0,2732.0,0.002]
[1769789815234,0.1024,2733.0,2732.0,0.002]
[1769789815416,0.1024,2733.0,2732.0,0.97216011]
[1769789815618,0.01475579,2733.2,2732.0,0.97216011]
[1769789815818,0.11715579,2733.6,2732.0,0.97216011]
[1769789816051,0.88415579,2733.6,2732.0,0.97216011]
[1769789816254,0.88415579,2733.6,2732.0,0.92216011]
[1769789816255,0.01475579,2733.2,2732.0,0.92216011]
[1769789817114,0.01475579,2733.0,2732.0,0.92216011]
[1769789817311,0.01475579,2733.0,2731.8,0.002]
[1769789817850,0.01475579,2733.0,2731.8,0.97216011]
[1769789818613,0.01475579,2732.8,2731.8,0.002]
[1769789818815,0.01475579,2733.0,2731.8,0.002]
[1769789819014,0.01475579,2732.8,2732.2,0.002]
[1769789819227,0.01475579,2732.8,2731.8,0.002]
[1769789819448,0.01475579,2732.8,2732.0,0.002]
[1769789819647,0.01475579,2732.6,2731.4,0.97016011]
[1769789820230,0.1024,2732.7,2731.4,0.97016011]
[1769789820819,0.01475579,2732.8,2731.4,0.97016011]
[1769789821145,0.11815579,2733.2,2731.5,0.97016011]
[1769789821347,0.01475579,2733.0,2731.5,0.97016011]
[1769789821535,0.01475579,2732.6,2731.5,0.97016011]
[1769789822470,0.01475579,2733.0,2731.6,0.97016011]
[1769789822634,0.001,2733.2,2731.8,0.97016011]
[1769789822967,0.01475579,2733.1,2731.9,1.15869422]
[1769789823166,0.001,2733.2,2731.9,0.97016011]
[1769789825266,0.001,2733.2,2732.0,0.97016011]
[1769789827271,0.001,2733.2,2732.1,0.97932613]
[1769789827774,0.001,2733.2,2731.6,0.97932613]
[1769789827775,0.01475579,2733.1,2731.6,0.97932613]
[1769789828992,0.11715579,2733.1,2731.6,0.97932613]
[1769789829157,0.01475579,2732.9,2731.6,0.97932613]
[1769789829354,0.01475579,2732.7,2731.6,0.97932613]
[1769789829581,0.01475579,2732.5,2731.2,0.98132613]
[1769789829792,0.86517408,2732.4,2731.2,0.98132613]
[1769789829952,0.01475579,2732.5,2731.2,0.98132613]
[1769789830266,0.11715579,2732.7,2731.2,0.98132613]
[1769789830882,0.01475579,2732.7,2731.2,0.98132613]
[1769789831183,0.01475579,2732.8,2731.5,0.97932613]
[1769789831352,0.001,2733.0,2731.5,0.97932613]
[1769789832279,0.01475579,2732.7,2731.5,0.97932613]
[1769789833100,0.01475579,2732.7,2731.4,0.002]
[1769789833253,0.01475579,2732.5,2731.4,0.002]
[1769789834391,0.01475579,2732.5,2731.4,0.98132613]
[1769789834596,0.01475579,2732.7,2731.4,0.98132613]
[1769789836150,0.01475579,2732.5,2731.4,0.98132613]
[1769789836362,0.11715579,2732.9,2731.4,0.98132613]
[1769789836589,0.01475579,2732.7,2731.4,0.98132613]
[1769789837294,0.001,2733.0,2731.5,0.97932613]
[1769789837596,6.32902946,2733.8,2731.4,0.91727409]
[1769789837597,0.19119659,2733.7,2731.8,0.97932613]
[1769789837898,0.30734773,2734.0,2732.0,0.97932613]
[1769789838097,0.30734773,2734.0,2732.2,0.97932613]
[1769789839364,0.30734773,2734.0,2732.4,0.97932613]
[1769789839570,0.30734773,2734.0,2732.6,0.97932613]
[1769789839780,0.01475579,2733.7,2732.5,0.18943062]
[1769789839995,0.01475579,2733.7,2732.2,0.97932613]
[1769789840166,0.1024,2733.9,2732.3,0.97932613]
[1769789840771,0.01475579,2733.7,2732.3,0.97932613]
[1769789841073,0.01475579,2733.6,2732.3,0.97932613]
[1769789842076,0.72846582,2733.7,2732.3,0.97932613]
[1769789842280,0.11715579,2733.9,2732.5,0.97932613]
[1769789843617,0.11715579,2733.9,2731.8,1.89446983]
[1769789843618,0.01475579,2733.3,2731.8,1.89446983]
[1769789843828,0.01475579,2733.7,2731.9,0.97932613]
[1769789844107,0.001,2733.4,2731.9,0.97932613]
[1769789844302,0.001,2733.4,2732.1,0.97932613]
[1769789844712,0.01475579,2733.2,2732.1,0.97932613]
[1769789845596,0.001,2733.4,2732.1,0.97932613]
[1769789847319,0.01475579,2733.3,2732.1,0.97932613]
[1769789847486,0.01475579,2733.1,2731.7,0.97932613]
[1769789847688,0.01475579,2732.8,2731.4,0.98132613]
[1769789852722,0.11715579,2733.0,2731.4,0.98132613]
[1769789853810,0.11715579,2733.0,2731.4,0.002]
[1769789853811,0.01475579,2732.6,2731.4,0.002]
[1769789856062,0.01475579,2732.6,2731.6,0.002]
[1769789856452,0.01475579,2732.8,2731.6,0.002]
[1769789856962,0.001,2733.4,2731.6,0.002]
[1769789856963,0.001,2733.4,2731.6,0.98879186]
[1769789857341,0.01475579,2734.4,2731.8,1.22036216]
[1769789857670,0.01475579,2734.4,2731.9,0.01475579]
[1769789857869,0.1024,2733.9,2732.0,0.98679186]
[1769789858038,0.01475579,2734.4,2732.0,0.98679186]
[1769789858240,0.01475579,2734.6,2732.4,0.98679186]
[1769789858441,0.01475579,2734.4,2732.6,0.98679186]
[1769789858641,0.1024,2734.5,2732.6,0.98679186]
[1769789860286,0.01475579,2734.4,2732.6,0.98679186]
[1769789861988,0.01475579,2734.2,2732.6,0.98679186]
[1769789863020,0.01475579,2734.2,2732.7,0.98679186]
[1769789863287,0.65681585,2735.4,2732.8,0.98679186]
[1769789863659,0.1024,2735.3,2732.8,0.98679186]
[1769789864196,0.19107482,2735.7,2733.4,0.98679186]
[1769789864692,0.19107482,2735.7,2733.6,0.98679186]
[1769789864693,0.01475579,2735.5,2733.6,0.98679186]
[1769789864854,0.01475579,2735.3,2733.7,0.19013702]
[1769789865397,0.01475579,2735.3,2733.7,1.17692888]
[1769789865609,1.0867068,2735.8,2733.7,1.17692888]
[1769789865753,0.30495101,2735.8,2733.8,0.98679186]
[1769789865956,0.30495101,2735.8,2733.8,1.00154765]
[1769789866993,0.30495101,2735.8,2734.0,0.98679186]
[1769789867290,0.30495101,2735.8,2733.9,0.91444456]
[1769789867291,0.30495101,2735.8,2734.2,0.98679186]
[1769789867674,0.11715579,2735.7,2734.2,0.98679186]
[1769789867995,0.001,2734.7,2734.2,0.98679186]
[1769789868494,0.30495101,2735.8,2734.2,0.98679186]
[1769789868992,0.30495101,2735.8,2734.3,0.98679186]
[1769789869294,0.30495101,2735.8,2734.4,1.17690354]
[1769789870465,0.11715579,2735.7,2734.4,0.19011168]
[1769789870681,0.11715579,2735.7,2734.0,0.98679186]
[1769789871388,0.11715579,2735.7,2734.1,0.98679186]
[1769789871692,0.1024,2735.7,2734.1,0.98679186]
[1769789873509,0.1024,2735.7,2734.0,0.91440644]
[1769789873510,1.0172342,2735.7,2733.8,0.98679186]
[1769789873803,0.01475579,2735.3,2733.8,0.98679186]
[1769789874473,0.11715579,2735.3,2733.8,0.98679186]
[1769789874998,0.1024,2735.3,2733.9,0.98679186]
[1769789875299,0.1024,2735.7,2734.3,0.98679186]
[1769789875804,1.0172342,2735.7,2733.9,0.98679186]
[1769789876112,1.0172342,2735.5,2733.9,0.98679186]
[1769789878811,0.9148342,2735.3,2733.5,0.98679186]
[1769789879110,0.9148342,2735.3,2733.6,1.90132989]
[1769789879408,0.01475579,2735.4,2733.7,0.98679186]
[1769789879878,0.1024,2735.3,2733.7,0.98679186]
[1769789880277,0.9148342,2735.0,2734.1,0.001]
[1769789880482,0.1024,2734.9,2734.1,0.001]
[1769789880681,0.1024,2735.1,2734.1,0.001]
[1769789880880,1.03198999,2735.1,2734.1,0.001]
[1769789881207,0.1024,2734.8,2733.2,0.98679186]
[1769789881378,0.92958999,2734.7,2732.8,1.75379186]
[1769789881578,0.92958999,2734.7,2732.9,0.98679186]
[1769789881778,0.92958999,2734.7,2733.0,1.25365181]
[1769789881979,0.9148342,2734.4,2733.0,0.26685995]
[1769789882179,0.9148342,2734.4,2732.6,0.98679186]
[1769789883025,1.03198999,2734.2,2732.6,0.98679186]
[1769789883219,0.1024,2734.0,2732.5,0.19017719]
[1769789883400,0.1024,2734.0,2732.4,1.34765935]
[1769789883820,0.11715579,2734.0,2732.4,1.34765935]
[1769789884024,0.11715579,2734.0,2731.5,0.01675579]
[1769789884025,0.9148342,2733.5,2731.9,0.98679186]
[1769789884346,0.01475579,2733.0,2731.8,0.002]
[1769789884640,0.11715579,2732.6,2731.5,0.002]
[1769789884840,0.5003483,2732.5,2731.6,0.001]
[1769789885122,0.1024,2732.6,2731.6,0.001]
[1769789886228,0.01475579,2732.8,2731.5,0.002]
[1769789886229,0.92958999,2732.4,2731.5,0.002]
[1769789886393,0.11715579,2732.2,2731.2,0.002]
[1769789886600,0.11715579,2732.2,2731.0,0.002]
[1769789886601,0.01475579,2731.8,2731.0,0.002]
[1769789887000,0.01475579,2731.6,2730.5,0.002]
[1769789887694,0.1024,2731.7,2730.5,0.002]
[1769789888350,0.01475579,2731.5,2730.5,0.002]
[1769789888555,0.1024,2731.1,2730.1,0.002]
[1769789888839,0.01475579,2731.0,2729.2,0.96113663]
[1769789889047,0.01475579,2731.0,2729.3,0.18771884]
[1769789889222,3.0,2730.0,2729.3,0.18771884]
[1769789889423,3.0,2730.0,2728.9,0.001002]
[1769789889600,3.0,2730.0,2727.8,0.96212665]
[1769789889601,0.1913969,2729.2,2727.8,0.96212665]
[1769789889800,0.1913969,2729.2,2727.9,0.96212665]
[1769789890029,0.01475579,2729.7,2727.9,0.96212665]
[1769789890030,0.1024,2729.9,2728.1,0.96212665]
[1769789890239,3.0,2730.0,2728.1,0.96212665]
[1769789890549,3.0,2730.0,2728.3,0.96212665]
[1769789890701,0.01475579,2729.9,2728.3,0.96212665]
[1769789891145,0.01475579,2729.7,2728.3,0.96212665]
[1769789891344,0.1024,2729.9,2728.3,0.96212665]
[1769789891701,0.1024,2729.9,2728.2,0.18785489]
[1769789891702,0.01475579,2729.5,2728.2,0.18785489]
[1769789891931,0.01475579,2728.9,2727.3,0.96212665]
[1769789892129,0.1024,2729.0,2727.4,0.96212665]
[1769789892831,0.99252084,2729.9,2727.4,0.96212665]
[1769789893052,0.767,2729.4,2727.4,0.96212665]
[1769789893344,0.01475579,2729.1,2728.3,0.002]
[1769789893512,0.1024,2729.3,2728.3,0.002]
[1769789893698,0.767,2729.5,2728.3,0.002]
[1769789893902,0.1024,2729.4,2728.3,0.002]
[1769789894104,3.0,2730.0,2728.3,0.96412665]
[1769789894317,0.11715579,2729.9,2728.3,0.96412665]
[1769789894533,0.01475579,2729.5,2728.3,0.002]
[1769789894752,0.01475579,2729.1,2728.3,0.002]
[1769789895053,0.01475579,2728.9,2728.3,0.002]
[1769789895204,0.01475579,2729.2,2728.3,0.002]
[1769789895854,0.01475579,2729.5,2728.3,0.002]
[1769789896747,0.1024,2729.6,2728.3,0.002]
[1769789897250,0.1024,2729.6,2728.3,0.96412665]
[1769789897251,0.01475579,2729.5,2728.3,0.96412665]
[1769789897544,0.01475579,2729.3,2728.3,0.002]
[1769789897711,0.01475579,2729.1,2728.3,0.002]
[1769789897912,0.01475579,2729.3,2728.3,0.002]
[1769789899239,0.1024,2729.6,2728.3,0.96412665]
[1769789899603,0.01475579,2729.5,2728.3,0.96412665]
[1769789900351,0.01475579,2728.9,2728.0,0.002]
[1769789900519,0.01475579,2728.7,2728.0,0.002]
[1769789900708,0.01475579,2728.3,2726.8,1.87892053]
[1769789900909,0.01475579,2728.1,2727.0,0.19009205]
[1769789901232,0.11715579,2728.5,2727.0,0.96412665]
[1769789901560,0.01475579,2728.3,2727.0,0.002]
[1769789901727,0.11715579,2728.5,2727.0,0.96412665]
[1769789901925,0.01475579,2728.3,2727.0,0.002]
[1769789902570,0.01475579,2728.1,2727.0,0.002]
[1769789903456,0.01475579,2728.2,2727.0,0.002]
[1769789903846,0.01475579,2728.0,2727.0,0.002]
[1769789904478,0.01475579,2727.7,2727.0,0.002]
[1769789904763,0.01475579,2727.5,2727.0,0.002]
[1769789904985,0.01475579,2727.5,2726.0,0.96212665]
[1769789905175,0.01475579,2727.5,2726.3,0.96212665]
[1769789905328,0.11715579,2728.0,2726.3,1.87911768]
[1769789905528,0.97776505,2728.6,2727.2,0.002]
[1769789905756,0.01475579,2728.4,2727.2,0.002]
[1769789905967,0.001,2728.3,2727.2,0.96412665]
[1769789906568,0.001,2728.3,2727.2,0.002]
[1769789906750,0.01475579,2728.0,2727.2,0.002]
[1769789906931,0.01475579,2727.8,2727.2,0.002]
[1769789907844,0.01475579,2727.8,2727.2,0.001]
[1769789908362,0.78275579,2727.8,2727.2,0.001]
[1769789908567,0.01475579,2727.3,2726.3,0.96112864]
[1769789908986,0.01475579,2727.6,2726.1,0.96212665]
[1769789909136,0.01475579,2727.6,2726.2,1.15004623]
[1769789909873,0.1024,2727.7,2726.2,1.15004623]
[1769789910078,0.99252084,2728.2,2725.9,0.002]
[1769789910079,0.1024,2728.1,2725.9,0.002]
[1769789910373,0.001,2728.3,2726.4,0.96212665]
[1769789910545,0.001,2728.3,2726.6,0.96212665]
[1769789911060,0.1024,2728.1,2726.5,0.18938688]
[1769789911861,0.1024,2728.1,2726.5,1.15151353]
[1769789912264,0.1024,2728.2,2726.5,1.15151353]
[1769789912441,0.01475579,2727.8,2726.6,0.20684511]
[1769789912764,0.01475579,2727.8,2726.5,0.18938688]
[1769789912972,1.09492084,2727.8,2725.9,0.002]
[1769789913140,0.01475579,2727.6,2725.9,0.002]
[1769789913334,0.01475579,2727.4,2725.9,0.002]
[1769789913748,0.01475579,2727.2,2725.9,0.002]
[1769789914764,0.1024,2727.3,2725.9,0.002]
[1769789914963,0.01475579,2727.6,2725.9,0.002]
[1769789916065,0.11715579,2727.4,2725.9,0.002]
[1769789916236,1.08787582,2727.4,2725.9,0.002]
[1769789916438,1.07312003,2727.4,2725.9,0.002]
[1769789916667,0.01475579,2727.1,2725.9,0.002]
[1769789916867,0.97273363,2727.3,2725.9,0.002]
[1769789917372,0.95797784,2727.3,2725.9,0.002]
[1769789917962,0.11715579,2727.6,2725.9,0.002]
[1769789918274,0.11715579,2727.6,2725.9,1.00196939]
[1769789918450,1.07513363,2727.6,2725.9,0.002]
[1769789918657,0.01475579,2727.2,2726.1,0.002]
[1769789918961,0.01475579,2727.4,2726.1,0.002]
[1769789919470,0.01475579,2727.8,2726.1,1.00196939]
[1769789920687,0.18588894,2727.8,2726.3,0.99996939]
[1769789920987,0.001,2728.3,2726.3,0.99996939]
[1769789921153,0.001,2728.3,2726.3,1.01472518]
[1769789921353,0.01475579,2728.2,2726.3,0.99996939]
[1769789921572,0.01475579,2728.0,2726.3,0.99996939]
[1769789921758,0.01475579,2728.0,2726.4,0.26859968]
[1769789921967,0.01475579,2728.0,2726.4,1.26856907]
[1769789922173,0.001,2728.3,2726.5,0.99996939]
[1769789922641,0.97273363,2728.0,2726.4,0.26859968]
[1769789922846,0.97273363,2728.0,2726.4,1.18555744]
[1769789923044,0.97273363,2728.0,2726.5,0.91692385]
[1769789923277,0.01475579,2728.2,2726.6,0.99996939]
[1769789923481,0.01475579,2728.2,2726.7,1.19165871]
[1769789923681,0.1034,2728.3,2726.7,1.19165871]
[1769789924565,0.01475579,2728.2,2726.7,1.19165871]
[1769789925104,0.1034,2728.3,2726.7,2.10851467]